bitfinex-derivatives/quotes_ETHF0:USTF0_20250903
["timestamp","ask_amount","ask_price","bid_price","bid_amount"]
[1756905052774,0.123,4377.5,4376.2,40.8]
[1756905052775,0.123,4376.5,4376.2,40.8]
[1756905052971,0.7328,4376.4,4376.3,0.1986]
[1756905053171,0.7328,4376.4,4375.8,0.239]
[1756905053572,0.3169,4376.3,4375.9,40.8]
[1756905053774,0.3292,4376.0,4375.9,40.8]
[1756905053972,0.6461,4376.0,4375.9,40.8]
[1756905055283,0.6461,4376.0,4375.2,0.1581]
[1756905055583,0.6461,4376.0,4375.3,40.8]
[1756905055881,0.5389,4375.5,4375.4,0.1986]
[1756905056380,0.8558,4375.5,4375.4,0.1986]
[1756905056580,0.8558,4375.5,4375.4,0.3998]
[1756905057577,0.3169,4375.4,4374.3,5.165]
[1756905057779,0.3169,4375.4,4374.2,0.22858]
[1756905058175,0.3169,4375.4,4374.3,40.8]
[1756905058480,0.123,4375.5,4374.3,40.8]
[1756905058481,0.2062,4374.4,4374.3,40.8]
[1756905058677,0.5231,4374.4,4374.3,40.8]
[1756905059583,0.3169,4374.4,4374.3,40.8]
[1756905060077,0.3169,4374.9,4374.4,0.3998]
[1756905060282,0.123,4375.0,4374.4,0.62839]
[1756905060482,0.4399,4375.0,4374.9,0.3998]
[1756905060676,0.123,4375.5,4374.9,0.3998]
[1756905061382,0.8558,4374.5,4374.4,0.1986]
[1756905062278,0.6461,4374.5,4374.4,0.3998]
[1756905062486,0.4399,4374.5,4374.4,0.3998]
[1756905062872,0.8558,4374.5,4374.4,0.3998]
[1756905063074,0.3169,4374.4,4373.5,0.1581]
[1756905063385,0.3169,4374.4,4373.6,0.46662]
[1756905063686,0.3169,4374.4,4373.7,40.8]
[1756905064579,0.123,4374.5,4373.7,40.8]
[1756905065277,0.3169,4374.4,4373.7,40.8]
[1756905065472,0.123,4374.5,4373.7,40.8]
[1756905066083,0.3169,4374.4,4373.7,40.8]
[1756905066281,0.123,4374.5,4373.7,40.8]
[1756905066973,0.7328,4374.4,4374.3,0.1986]
[1756905067684,0.3169,4374.3,4373.7,40.8]
[1756905067881,0.3169,4374.4,4373.7,40.8]
[1756905068082,0.5231,4373.8,4373.7,40.8]
[1756905068483,0.5231,4373.8,4373.7,0.1986]
[1756905069385,0.7328,4373.8,4373.7,0.1986]
[1756905071182,0.3169,4373.7,4373.5,40.8]
[1756905071386,0.7328,4373.6,4373.5,40.8]
[1756905071690,0.7328,4373.6,4373.5,0.1986]
[1756905072381,0.433,4373.5,4373.2,40.8]
[1756905072581,0.3266,4373.0,4372.9,0.6465]
[1756905072788,0.6377,4373.0,4372.9,0.4085]
[1756905073084,0.433,4373.0,4372.9,41.2085]
[1756905073284,0.3111,4373.4,4372.9,41.3667]
[1756905073485,0.1219,4373.5,4372.9,41.2085]
[1756905073686,0.4341,4374.0,4373.1,4.64921794]
[1756905073878,0.6388,4374.5,4374.4,0.4085]
[1756905074285,0.8417,4374.5,4374.4,0.4085]
[1756905074887,5.0703,4374.5,4372.9,40.8]
[1756905075191,0.53974,4374.4,4373.0,0.1582]
[1756905075687,0.53974,4374.4,4373.0,0.1967]
[1756905075688,0.3871,4374.4,4373.0,0.1967]
[1756905075890,0.3111,4374.4,4373.0,0.1967]
[1756905076088,0.7187,4374.4,4374.3,0.1989]
[1756905077386,0.7187,4374.4,4373.6,0.1582]
[1756905077784,0.1219,4373.5,4373.4,0.1989]
[1756905077992,0.433,4374.0,4373.4,0.5667]
[1756905078380,0.3111,4373.9,4373.4,0.4085]
[1756905078584,0.1219,4374.0,4373.0,0.0385]
[1756905078585,0.1219,4374.0,4373.8,0.4085]
[1756905078787,0.3111,4374.3,4374.2,0.4085]
[1756905078788,0.7187,4374.3,4374.2,0.4085]
[1756905080792,3.9265,4374.3,4374.2,0.4085]
[1756905083698,3.9265,4374.3,4373.6,0.1582]
[1756905083896,0.8406,4374.0,4373.9,0.1989]
[1756905084091,0.8406,4374.0,4373.2,3.366]
[1756905084092,0.3111,4373.9,4373.2,3.59464]
[1756905084298,0.7187,4373.9,4373.8,0.1989]
[1756905084598,0.7187,4373.9,4373.8,0.4085]
[1756905085401,0.5295,4373.5,4373.4,0.1989]
[1756905085800,0.8406,4373.5,4373.4,0.1989]
[1756905087191,0.433,4373.5,4373.4,0.4085]
[1756905087394,0.8406,4373.5,4373.4,0.4085]
[1756905087997,0.6377,4373.5,4373.4,0.4085]
[1756905088203,0.6377,4373.5,4373.4,0.5667]
[1756905088996,0.1219,4374.0,4373.5,0.1582]
[1756905088997,0.3111,4373.9,4373.5,0.1582]
[1756905089201,0.7187,4373.9,4373.8,0.4085]
[1756905090196,0.7187,4373.9,4373.8,0.1989]
[1756905094804,0.1219,4374.0,4373.4,0.1989]
[1756905094805,0.8406,4373.5,4373.4,0.1989]
[1756905097808,0.3111,4372.8,4372.7,40.9798227]
[1756905098611,0.4076,4372.7,4372.4,1.62365712]
[1756905098808,0.5158,4372.2,4372.1,3.6163]
[1756905099106,0.3111,4372.4,4372.1,44.4163]
[1756905099302,0.1219,4373.0,4372.4,0.5667]
[1756905099502,3.2078,4373.1,4373.0,0.1582]
[1756905099704,3.2078,4373.1,4373.0,0.5667]
[1756905100007,3.5189,4373.1,4373.0,0.5667]
[1756905100407,3.7236,4373.1,4373.0,0.5667]
[1756905100610,3.9265,4373.1,4373.0,0.4085]
[1756905100906,0.2047,4372.4,4372.3,0.4085]
[1756905101208,0.3111,4372.4,4372.3,0.5667]
[1756905102810,0.5118,4372.4,4372.3,0.4085]
[1756905103012,0.7239,4372.4,4372.3,0.4085]
[1756905103209,0.3111,4372.4,4372.3,0.5675]
[1756905103706,0.3016,4372.9,4372.4,0.159]
[1756905103910,0.5023,4372.9,4372.8,0.4044]
[1756905105010,0.7144,4372.9,4372.8,0.4044]
[1756905105407,0.7144,4372.9,4372.4,0.238]
[1756905105713,0.8364,4372.5,4372.4,0.2046]
[1756905106014,0.5348,4372.5,4372.1,40.98201277]
[1756905106310,0.7144,4372.2,4372.1,40.8]
[1756905110012,0.122,4372.0,4371.7,3.2078]
[1756905110210,0.3227,4372.0,4371.9,0.4044]
[1756905110411,0.6243,4372.0,4371.9,0.4044]
[1756905110608,0.6243,4372.0,4371.9,41.2044]
[1756905111727,0.6243,4372.0,4371.9,41.3634]
[1756905112011,0.4236,4372.0,4371.9,41.3634]
[1756905112216,0.3016,4372.9,4372.4,0.5634]
[1756905112515,0.7144,4372.9,4372.8,0.4044]
[1756905112903,0.7144,4372.9,4372.5,0.238]
[1756905113106,0.4128,4372.3,4372.2,0.6424]
[1756905113320,0.5023,4372.3,4372.2,0.8014]
[1756905113720,0.5023,4372.3,4372.2,0.6424]
[1756905114024,0.7144,4372.3,4372.2,0.4044]
[1756905114818,0.3016,4372.3,4372.2,0.4044]
[1756905115015,0.3016,4372.3,4372.2,0.5634]
[1756905115219,0.7144,4372.3,4372.2,0.4044]
[1756905115420,0.3016,4372.3,4372.2,0.5634]
[1756905115627,0.3016,4372.5,4372.2,4.66937104]
[1756905115925,3.9481,4372.8,4372.7,0.4044]
[1756905116119,4.1602,4372.8,4372.7,0.4044]
[1756905117627,3.7101,4372.8,4372.7,1.52290276]
[1756905117923,0.5023,4372.8,4372.7,1.52290276]
[1756905118126,0.3016,4372.8,4372.7,1.91990276]
[1756905118324,0.3016,4372.9,4372.7,1.76090276]
[1756905118526,0.3016,4372.9,4372.8,0.5634]
[1756905118724,0.3016,4372.9,4372.8,41.3634]
[1756905119924,0.3016,4372.9,4372.8,41.2044]
[1756905121123,0.3016,4372.9,4372.8,40.8]
[1756905122038,0.3016,4372.9,4372.8,40.959]
[1756905122925,0.3016,4373.2,4373.1,0.4044]
[1756905123124,3.2078,4373.8,4373.1,2.87940552]
[1756905123330,3.2078,4373.8,4373.7,1.68190276]
[1756905123527,3.2078,4373.8,4373.7,42.48190276]
[1756905124530,3.5094,4373.8,4373.7,42.48190276]
[1756905125728,0.3016,4373.8,4373.7,42.76801549]
[1756905126328,0.3016,4373.8,4373.7,42.60901549]
[1756905126531,0.3016,4373.8,4373.7,42.76801549]
[1756905127522,0.3016,4373.8,4373.7,41.49051273]
[1756905128334,0.3016,4373.8,4373.7,42.60901549]
[1756905128926,0.3016,4373.8,4373.7,42.40921549]
[1756905129129,3.5094,4373.8,4373.7,40.8]
[1756905130629,3.5094,4373.8,4373.4,0.238]
[1756905130833,0.4128,4373.2,4373.1,1.32310276]
[1756905131032,0.7144,4373.2,4373.1,2.04681443]
[1756905131229,0.7144,4373.2,4373.1,42.84681443]
[1756905131434,0.7144,4373.2,4373.1,42.40901443]
[1756905131631,3.2078,4373.8,4373.7,0.1933]
[1756905131827,3.2078,4373.8,4373.7,1.66850276]
[1756905132027,3.2078,4373.8,4373.7,2.19234166]
[1756905132230,3.2078,4373.8,4373.7,0.788]
[1756905132432,3.9061,4373.8,4373.7,0.4363]
[1756905133134,3.9061,4373.8,4373.1,40.9584]
[1756905133338,0.6983,4373.3,4373.2,0.28580316]
[1756905133538,0.6983,4373.3,4373.1,40.8]
[1756905133832,0.6983,4373.2,4372.9,3.2078]
[1756905134035,0.311,4372.5,4372.4,1.51010276]
[1756905134236,0.8183,4372.5,4372.4,1.79600897]
[1756905134433,0.8183,4372.5,4372.4,42.40270897]
[1756905135341,0.8183,4372.5,4372.4,0.28590621]
[1756905135543,4.0261,4372.5,4372.0,0.238]
[1756905135833,3.725,4372.5,4372.1,41.0860175]
[1756905136035,0.6983,4372.3,4372.2,0.2860175]
[1756905136429,0.6983,4372.3,4372.2,0.4843175]
[1756905136634,0.6983,4372.3,4372.2,0.6776175]
[1756905137435,0.4921,4372.3,4372.2,0.6776175]
[1756905138638,0.6983,4372.3,4372.2,0.6776175]
[1756905138843,0.6983,4372.3,4372.2,0.4843175]
[1756905139042,0.6983,4372.3,4372.2,0.2860175]
[1756905139241,0.6352,4372.3,4372.1,40.8]
[1756905139546,0.6983,4371.6,4371.5,3.5994]
[1756905139741,0.6983,4371.6,4371.5,4.12348484]
[1756905140041,0.6983,4371.6,4371.5,44.92348484]
[1756905141745,0.4921,4371.6,4371.5,44.92348484]
[1756905144247,0.3011,4371.6,4371.5,45.08188484]
[1756905144446,0.3011,4371.6,4371.5,44.92348484]
[1756905144651,0.3011,4371.6,4371.5,44.68548484]
[1756905144842,0.3011,4371.6,4371.5,44.92348484]
[1756905145642,0.3011,4371.6,4371.5,45.08188484]
[1756905145842,0.4211,4372.0,4371.9,0.3916]
[1756905146043,0.6121,4372.0,4371.9,0.3916]
[1756905149350,0.8183,4372.0,4371.9,0.1983]
[1756905149544,0.3011,4371.9,4371.5,40.8]
[1756905149740,0.3972,4371.7,4371.6,0.28611578]
[1756905149947,0.6983,4371.7,4371.6,0.28611578]
[1756905150147,0.3011,4371.7,4371.6,0.83611578]
[1756905150454,0.4921,4371.7,4371.6,0.67771578]
[1756905150657,0.6983,4371.7,4371.6,0.67771578]
[1756905151351,0.3011,4372.8,4372.4,0.3916]
[1756905151554,0.3011,4372.9,4372.8,0.55]
[1756905151850,0.3011,4372.9,4372.8,41.588]
[1756905152253,0.3011,4372.9,4372.8,41.4296]
[1756905152552,0.3011,4372.9,4372.8,41.1916]
[1756905152751,0.3011,4372.9,4372.8,41.038]
[1756905152956,0.3011,4372.9,4372.8,40.8]
[1756905153153,3.2078,4373.4,4372.1,3.2078]
[1756905153154,0.8183,4372.5,4372.4,0.4363]
[1756905153347,0.8183,4372.5,4372.4,0.48425264]
[1756905153548,0.3011,4372.5,4372.4,41.35]
[1756905153847,0.4211,4373.0,4372.5,0.1584]
[1756905154049,0.4211,4373.0,4372.9,0.55]
[1756905154447,0.3011,4373.0,4372.9,0.55]
[1756905154749,0.6121,4373.0,4372.9,0.3916]
[1756905155850,0.8183,4373.0,4372.9,0.3916]
[1756905156056,0.3011,4372.9,4372.6,3.4458]
[1756905156255,0.6983,4372.7,4372.6,3.2078]
[1756905156456,0.6983,4372.7,4372.6,3.4061]
[1756905156657,0.6983,4372.7,4372.6,3.5994]
[1756905160152,0.4921,4372.7,4372.6,3.7578]
[1756905160461,0.3011,4372.7,4372.6,0.55]
[1756905160653,0.4921,4372.7,4372.6,0.3916]
[1756905160854,0.191,4371.8,4371.6,4.83145712]
[1756905161053,0.191,4371.8,4371.7,0.6296]
[1756905161054,0.6983,4371.8,4371.7,0.6296]
[1756905161254,0.6983,4371.8,4371.7,0.3916]
[1756905161455,0.6983,4371.8,4371.7,0.6296]
[1756905161852,0.6983,4371.8,4371.7,0.3916]
[1756905162455,0.4921,4371.8,4371.7,41.1916]
[1756905162765,0.12,4372.0,4371.7,41.3503]
[1756905162963,0.3033,4372.9,4372.3,0.5538]
[1756905163151,0.58671001,4373.0,4372.3,3.6029]
[1756905163351,0.58671001,4373.0,4372.3,3.8409]
[1756905163560,0.3928,4372.9,4372.8,0.1958]
[1756905163755,0.6961,4372.9,4372.8,0.3951]
[1756905164157,0.6961,4372.9,4372.8,0.1958]
[1756905166158,0.6961,4372.9,4372.4,40.8]
[1756905166361,0.6961,4372.4,4372.3,0.1958]
[1756905166567,0.6961,4372.4,4372.3,0.5538]
[1756905166568,0.5032,4372.4,4372.3,0.5538]
[1756905166868,0.3033,4372.4,4372.3,0.5538]
[1756905167165,0.3033,4372.3,4372.0,40.8]
[1756905167365,0.6961,4372.1,4372.0,41.038]
[1756905167962,0.3033,4372.1,4372.0,41.1967]
[1756905168664,0.1265,4372.5,4372.4,0.3951]
[1756905168665,0.3264,4372.5,4372.4,0.3951]
[1756905168866,0.5193,4372.5,4372.4,0.3951]
[1756905169158,0.8226,4372.5,4372.4,0.3951]
[1756905169954,0.8226,4372.5,4372.0,41.038]
[1756905170158,0.5032,4372.1,4372.0,41.038]
[1756905171466,0.5032,4372.1,4372.0,42.1566616]
[1756905172367,0.5032,4372.1,4372.0,40.8]
[1756905175462,0.3033,4372.1,4372.0,40.9587]
[1756905175662,0.6297,4372.5,4372.4,0.3951]
[1756905176570,0.4298,4372.5,4372.4,0.5538]
[1756905177265,0.6297,4372.5,4372.4,0.3951]
[1756905177575,0.8226,4372.5,4372.4,0.3951]
[1756905178369,0.8226,4372.5,4372.4,0.1958]
[1756905178564,0.5193,4372.5,4372.0,40.8]
[1756905178770,0.6961,4372.1,4372.0,41.038]
[1756905179168,0.6961,4372.1,4372.0,40.8]
[1756905182167,0.3033,4372.1,4372.0,40.9587]
[1756905182368,0.6297,4372.5,4372.4,0.3951]
[1756905182572,3.5111,4372.7,4372.4,0.3951]
[1756905182767,3.5111,4372.7,4372.6,0.3951]
[1756905182968,0.85082576,4372.7,4372.6,0.5538]
[1756905183266,0.3033,4372.7,4372.6,0.5538]
[1756905183674,0.12,4373.0,4372.6,0.3951]
[1756905183868,0.4233,4373.0,4372.9,0.5538]
[1756905184068,0.3033,4373.0,4372.9,0.5538]
[1756905184368,0.4298,4373.0,4372.9,0.5538]
[1756905186275,0.6297,4373.0,4372.9,0.3951]
[1756905186668,0.8226,4373.0,4372.9,0.3951]
[1756905186876,0.5193,4372.5,4372.4,0.1958]
[1756905187074,0.8226,4372.5,4372.4,0.1958]
[1756905187377,1.0606,4373.0,4372.9,0.3951]
[1756905188578,0.3194,4372.5,4372.4,0.1958]
[1756905188777,0.8226,4372.5,4372.4,0.1958]
[1756905191383,0.8226,4372.5,4372.1,0.238]
[1756905191677,0.3175,4372.4,4372.0,41.038]
[1756905191883,0.5141,4372.1,4372.0,41.038]
[1756905192070,0.5141,4372.1,4372.0,40.8]
[1756905196088,0.3175,4372.1,4372.0,40.9586]
[1756905196477,0.3175,4372.1,4372.0,40.8]
[1756905196685,0.5611,4373.0,4372.9,0.3931]
[1756905196880,1.30518289,4373.0,4372.9,0.3931]
[1756905197082,1.38468289,4373.0,4372.9,0.3931]
[1756905197480,0.444,4373.0,4372.9,0.5517]
[1756905198284,3.2078,4373.4,4372.9,0.5517]
[1756905198484,0.74419835,4373.3,4373.2,0.3931]
[1756905198687,0.1966,4373.3,4373.2,0.3931]
[1756905198985,0.5141,4373.3,4373.2,41.1931]
[1756905200689,0.5141,4373.3,4373.2,40.9982]
[1756905200881,0.5141,4373.3,4373.2,41.1568]
[1756905201081,0.3175,4373.3,4373.2,41.1568]
[1756905201290,0.3175,4373.3,4373.2,40.9982]
[1756905202786,0.5141,4373.3,4373.2,0.3931]
[1756905203286,0.3175,4373.3,4373.2,0.3931]
[1756905203491,0.3175,4373.5,4373.4,0.3931]
[1756905203786,0.1265,4374.0,4373.4,0.3931]
[1756905204189,0.1966,4373.9,4373.8,0.3931]
[1756905204383,0.5141,4373.9,4373.8,0.3931]
[1756905204787,0.5141,4373.9,4373.8,0.58012041]
[1756905205686,0.3175,4373.9,4373.8,0.73872041]
[1756905206089,3.2078,4374.9,4374.3,0.3931]
[1756905206387,0.238,4375.3,4375.1,0.5517]
[1756905206585,0.5141,4375.2,4375.1,0.3931]
[1756905208285,0.4344,4375.5,4375.4,0.5517]
[1756905208884,0.3175,4375.8,4375.4,41.1931]
[1756905209089,0.3539,4376.0,4375.9,0.3931]
[1756905209090,0.7469,4376.0,4375.9,0.3931]
[1756905209491,0.7469,4376.0,4375.9,0.1982]
[1756905209684,0.4344,4376.0,4375.9,0.5517]
[1756905209886,0.237,4376.3,4375.9,0.5517]
[1756905210182,0.7105,4376.2,4376.1,0.3931]
[1756905210587,0.237,4376.3,4376.0,40.8]
[1756905210588,0.3175,4376.1,4376.0,40.8]
[1756905213090,0.3175,4376.1,4376.0,40.9586]
[1756905213691,0.3175,4376.1,4376.0,40.8]
[1756905214398,0.8274,4376.5,4376.4,0.3931]
[1756905215000,0.3175,4376.4,4376.0,40.8]
[1756905215195,0.7105,4376.1,4376.0,40.8]
[1756905216687,0.7105,4376.1,4375.9,3.2078]
[1756905216893,0.8274,4375.5,4375.4,0.1982]
[1756905217295,0.8274,4375.5,4375.4,41.1931]
[1756905221602,0.4344,4375.5,4375.4,41.3517]
[1756905221804,0.3175,4375.5,4375.4,41.3517]
[1756905221998,0.4383,4375.5,4375.4,41.3517]
[1756905222696,0.1992,4375.8,4375.7,0.3877]
[1756905222901,0.4974,4375.8,4375.7,0.3877]
[1756905223907,0.6978,4375.8,4375.7,0.3877]
[1756905224204,0.4974,4375.8,4375.7,0.5454]
[1756905225000,0.4974,4375.8,4375.7,0.3877]
[1756905225907,0.6978,4375.8,4375.7,0.3877]
[1756905226905,0.6978,4375.8,4375.4,44.0078]
[1756905227211,0.419,4375.5,4375.4,44.1655]
[1756905227409,3.2078,4375.9,4375.7,0.3877]
[1756905227598,0.7344,4375.8,4375.7,0.3877]
[1756905228204,0.4974,4375.8,4375.7,0.3877]
[1756905228809,0.4974,4375.8,4375.7,0.5454]
[1756905229212,3.2078,4376.4,4376.3,0.3877]
[1756905229407,3.9422,4376.4,4376.3,0.3877]
[1756905229710,3.7052,4376.4,4376.3,0.3877]
[1756905229913,3.9056,4376.4,4376.3,0.3877]
[1756905230610,0.6978,4376.4,4376.3,0.3877]
[1756905233211,0.32,4376.0,4375.9,3.77591504]
[1756905233407,0.6182,4376.0,4375.9,4.06343765]
[1756905233612,0.419,4376.0,4375.9,4.06343765]
[1756905233908,0.3539,4376.5,4375.9,4.22113765]
[1756905234113,0.8147,4376.5,4376.4,0.3877]
[1756905234313,0.4151,4376.5,4376.4,0.83312514]
[1756905234705,0.6143,4376.5,4376.4,0.67542514]
[1756905234905,0.6143,4376.5,4376.4,41.47542514]
[1756905235310,0.4151,4376.5,4376.4,41.63312514]
[1756905236211,0.4151,4376.5,4376.4,41.47542514]
[1756905237115,0.4151,4376.5,4376.4,41.08772514]
[1756905237116,0.95759591,4376.5,4376.4,41.08772514]
[1756905240617,2.47391777,4376.5,4376.4,0.28772514]
[1756905241317,0.419,4376.0,4375.9,40.9577]
[1756905241514,0.419,4376.0,4375.9,40.8]
[1756905242014,0.419,4376.0,4375.9,40.9577]
[1756905242317,0.419,4376.0,4375.9,40.8]
[1756905245417,0.419,4376.0,4375.9,41.91672186]
[1756905245627,0.419,4376.0,4375.9,40.8]
[1756905245817,0.3996,4375.9,4375.8,3.2078]
[1756905246118,1.24261527,4375.9,4375.8,3.3992]
[1756905247712,1.24261527,4375.9,4375.8,4.86992186]
[1756905247713,0.84301527,4375.9,4375.8,4.86992186]
[1756905247915,0.2982,4375.9,4375.8,4.86992186]
[1756905248115,0.4974,4375.9,4375.8,4.86992186]
[1756905249415,0.6978,4375.9,4375.8,3.3992]
[1756905249619,0.6978,4375.9,4375.8,3.5955]
[1756905252420,0.6978,4375.9,4375.8,3.2078]
[1756905252623,0.7067,4375.2,4375.1,0.2086]
[1756905252921,1.82342186,4375.2,4375.1,0.2086]
[1756905253311,1.82342186,4375.2,4374.6,40.8]
[1756905253512,0.8251,4375.0,4374.9,0.2086]
[1756905253719,0.522,4375.0,4374.6,40.8]
[1756905253919,0.3031,4374.9,4374.6,40.8]
[1756905254118,0.7067,4374.7,4374.6,40.8]
[1756905254624,0.7067,4374.7,4374.6,0.4124]
[1756905256329,0.3031,4374.6,4374.0,4.56152186]
[1756905256520,0.1184,4374.5,4374.0,4.56152186]
[1756905256719,0.8251,4374.5,4374.4,0.4124]
[1756905258829,0.4215,4374.5,4374.4,0.5705]
[1756905259030,0.6325,4374.5,4374.4,0.5705]
[1756905259230,0.6325,4374.5,4374.4,0.4124]
[1756905260533,0.3031,4375.3,4374.9,0.56944]
[1756905260721,0.3031,4375.9,4375.8,0.5705]
[1756905261126,0.3031,4375.9,4375.8,1.68722186]
[1756905261630,3.3262,4376.5,4375.8,1.68722186]
[1756905261828,0.7511,4376.4,4376.3,0.4124]
[1756905263336,0.5141,4376.4,4376.3,0.4124]
[1756905263630,0.5141,4376.4,4376.3,0.5705]
[1756905264241,0.5141,4376.4,4376.3,0.4124]
[1756905264431,0.5141,4376.4,4376.3,0.5705]
[1756905265537,0.3031,4376.4,4376.3,0.5705]
[1756905265835,0.237,4376.9,4376.3,0.82361]
[1756905266134,0.3031,4377.4,4377.3,0.5705]
[1756905266333,0.3031,4377.4,4377.3,4.89502186]
[1756905266528,3.2078,4378.1,4377.7,0.5705]
[1756905266734,0.4036,4377.8,4377.7,0.4124]
[1756905267140,1.8325,4378.0,4377.9,0.4124]
[1756905267736,1.8325,4378.0,4377.9,41.3705]
[1756905268434,1.8325,4378.0,4377.9,41.2124]
[1756905270243,1.63129865,4380.6,4377.9,41.2124]
[1756905270244,1.22347399,4379.7,4377.9,4.22841999]
[1756905270447,3.67042197,4381.0,4380.4,0.1581]
[1756905270654,0.211,4380.9,4380.8,0.4124]
[1756905270850,0.4036,4380.9,4380.8,0.4124]
[1756905271143,4.4036,4380.9,4380.7,3.2078]
[1756905271342,0.4036,4380.2,4380.1,40.8]
[1756905271541,3.8494,4380.2,4380.1,40.8]
[1756905271946,0.6416,4380.2,4380.1,40.8]
[1756905272244,0.1184,4380.0,4379.2,0.3961]
[1756905272447,0.5141,4379.9,4379.8,0.2086]
[1756905272945,0.7067,4379.9,4379.8,0.2086]
[1756905273341,0.3031,4379.8,4379.3,40.8]
[1756905273540,0.3031,4379.9,4379.4,0.55832612]
[1756905273740,0.3031,4379.9,4379.3,40.8]
[1756905274047,0.3031,4379.9,4379.4,0.55832621]
[1756905274247,0.7067,4379.9,4379.8,0.2086]
[1756905274744,0.311,4379.5,4379.4,0.4124]
[1756905275049,0.522,4379.5,4379.4,0.4124]
[1756905275243,0.8251,4379.5,4379.4,0.4124]
[1756905275444,0.6325,4379.5,4379.4,0.4124]
[1756905275745,0.6325,4379.5,4379.4,0.76929824]
[1756905278950,0.1184,4380.0,4379.9,0.4124]
[1756905279245,0.1184,4380.0,4379.9,0.92739824]
[1756905279441,0.4215,4380.0,4379.9,0.92739824]
[1756905279946,3.2078,4380.2,4379.9,0.92739824]
[1756905280145,0.7067,4380.1,4380.0,0.76929824]
[1756905282237,0.3031,4380.1,4380.0,0.76929824]
[1756905282548,0.3031,4380.1,4380.0,0.92719824]
[1756905282756,3.2078,4380.2,4380.0,0.76929824]
[1756905283048,3.2078,4380.2,4380.1,0.91109824]
[1756905283250,0.2918,4380.2,4380.1,0.91109824]
[1756905284754,0.2918,4380.2,4380.1,0.75319824]
[1756905284755,0.4969,4380.2,4380.1,0.75319824]
[1756905285654,0.4969,4380.2,4380.1,3.96099824]
[1756905285854,0.1184,4381.5,4380.2,0.1579]
[1756905286154,0.6153,4381.0,4380.9,0.3963]
[1756905286354,0.6153,4381.0,4380.9,0.75319824]
[1756905286857,0.8237,4381.0,4380.9,0.75319824]
[1756905289358,0.4102,4381.0,4380.9,0.91109824]
[1756905289555,0.1184,4381.5,4381.4,0.5542]
[1756905289556,0.3242,4381.5,4381.4,0.5542]
[1756905289850,0.8244,4381.5,4381.4,0.35689824]
[1756905291445,0.8244,4381.0,4380.9,0.1958]
[1756905291650,0.8244,4381.0,4380.9,0.5246629]
[1756905291850,0.8244,4381.0,4380.9,0.7251629]
[1756905292246,0.8244,4381.0,4380.9,0.3288629]
[1756905292453,0.8244,4381.0,4380.0,3.4036]
[1756905292454,0.4135,4380.1,4380.0,3.4036]
[1756905292651,0.7053,4380.1,4380.0,3.2078]
[1756905292852,0.1191,4380.5,4379.9,0.1958]
[1756905292853,0.5326,4380.0,4379.9,0.1958]
[1756905293458,0.8244,4380.0,4379.9,1.31058174]
[1756905293857,0.8244,4380.0,4379.9,1.11478174]
[1756905294152,0.6193,4380.0,4379.9,1.11478174]
[1756905294354,0.5326,4380.0,4379.5,40.8]
[1756905294564,0.2918,4379.9,4379.5,40.8]
[1756905294751,0.4969,4379.6,4379.5,40.8]
[1756905295055,0.4969,4379.6,4379.5,41.01222494]
[1756905297964,0.7053,4379.6,4379.5,0.21222494]
[1756905298261,0.7053,4379.6,4379.5,0.60852494]
[1756905298662,0.7053,4379.6,4379.5,0.21222494]
[1756905298864,0.7053,4379.6,4379.5,0.40802494]
[1756905299167,0.7053,4379.6,4379.5,0.60852494]
[1756905299970,1.24118345,4379.6,4379.5,0.21222494]
[1756905300467,8.67731345,4379.6,4379.5,0.21222494]
[1756905300768,0.2918,4378.7,4378.6,0.7912]
[1756905300960,0.2918,4378.7,4378.6,44.562]
[1756905301572,0.2918,4378.7,4378.6,41.1963]
[1756905302062,0.82817621,4378.7,4378.6,41.1963]
[1756905302270,0.4969,4378.2,4378.1,3.6041]
[1756905302460,0.4969,4378.2,4378.1,0.6333]
[1756905302661,0.2918,4378.2,4378.1,0.7912]
[1756905302870,0.2918,4378.2,4378.1,41.5912]
[1756905303458,0.2918,4378.2,4378.1,41.1963]
[1756905304661,0.2918,4378.2,4378.1,41.4333]
[1756905304862,0.4109,4378.5,4378.4,0.5542]
[1756905305059,0.1191,4379.0,4378.5,0.2739]
[1756905305266,3.2078,4379.1,4378.9,0.3963]
[1756905305466,0.4109,4379.0,4378.9,0.5542]
[1756905305864,0.8244,4379.0,4378.9,0.3963]
[1756905306072,0.6193,4378.5,4378.4,0.6333]
[1756905306369,0.1191,4379.0,4378.4,0.6333]
[1756905306570,24.3262437,4391.4,4379.3,0.5542]
[1756905306571,0.2918,4379.4,4379.3,0.5542]
[1756905306879,0.7053,4379.4,4379.3,0.3963]
[1756905307562,0.7053,4379.4,4379.3,0.1958]
[1756905307760,0.4135,4379.4,4379.1,40.8]
[1756905307962,0.5326,4378.5,4378.4,0.1958]
[1756905308171,0.8244,4378.5,4378.4,0.1958]
[1756905308371,0.8244,4378.5,4378.4,41.1963]
[1756905308674,0.616,4379.0,4378.9,0.3963]
[1756905308977,0.2918,4379.0,4378.9,0.5542]
[1756905309162,0.4969,4379.0,4378.9,0.5542]
[1756905309362,0.616,4379.0,4378.9,0.3963]
[1756905309774,0.2918,4379.0,4378.9,0.5542]
[1756905310071,0.1191,4380.5,4378.9,0.5542]
[1756905310072,0.2918,4380.4,4379.6,0.41091]
[1756905310271,0.2918,4380.5,4380.3,4.64160314]